fUST/lending_fUST_20260604
["ID","MTS","AMOUNT","RATE_DAILY","PERIOD"]
[423970258,1780524649000,-500.0,0.00017808,2]
[423970237,1780524649000,-1106.82,0.00017534,2]
[423970297,1780524649000,-152.807,0.00018354,2]
[423970324,1780524649000,-1106.82,0.0001863,2]
[423970302,1780524649000,-2206.0,0.00018354,2]
[423970339,1780524649000,-838.3136676,0.00019021,2]
[423970337,1780524649000,-1001.16,0.00018904,2]
[423970341,1780524649000,-2641.48943574,0.000191,2]
[423970343,1780524649000,-232.36271342,0.00019178,2]
[423970354,1780524649000,-243.9,0.00019178,2]
[423970342,1780524649000,-3140.85975364,0.00019113,2]
[423970344,1780524649000,-418.25288415,0.00019178,2]
[423970355,1780524649000,-1001.16,0.00019178,2]
[423970353,1780524649000,-5143.02,0.00019178,2]
[423970356,1780524649000,-1106.82,0.00019178,2]
[423970345,1780524649000,-743.56068293,0.00019178,2]
[423970352,1780524649000,-585.16,0.00019178,2]
[423970349,1780524649000,-300.0,0.00019178,2]
[423970351,1780524649000,-500.0,0.00019178,2]
[423970338,1780524649000,-1106.82,0.00018904,2]
[423970347,1780524649000,-500.0,0.00019178,2]
[423970348,1780524649000,-500.0,0.00019178,2]
[423970357,1780524649000,-593.025,0.00019196,2]
[423970359,1780524649000,-1000.0,0.000193,2]
[423970361,1780524649000,-230.54,0.00019452,2]
[423970365,1780524649000,-5143.02,0.00019452,2]
[423970358,1780524649000,-2641.48943574,0.000193,2]
[423970362,1780524649000,-500.0,0.00019452,2]
[423970368,1780524649000,-487.0,0.00019452,2]
[423970363,1780524649000,-500.0,0.00019452,2]
[423970366,1780524649000,-1001.16,0.00019452,2]
[423970370,1780524649000,-632.63,0.00019452,2]
[423970367,1780524649000,-1106.82,0.00019452,2]
[423970369,1780524649000,-487.0,0.00019452,2]
[423970299,1780524649000,-1415.0,0.00018354,2]
[423970346,1780524649000,-1160.65175351,0.00019178,2]
[423970336,1780524649000,-500.0,0.00018904,2]
[423970364,1780524649000,-585.16,0.00019452,2]
[423970335,1780524649000,-5143.02,0.00018904,2]
[423970333,1780524649000,-585.16,0.00018904,2]
[423970303,1780524649000,-500.0,0.00018356,2]
[423970298,1780524649000,-1836.0,0.00018354,2]
[423970301,1780524649000,-3631.0,0.00018354,2]
[423970305,1780524649000,-500.0,0.00018356,2]
[423970304,1780524649000,-500.0,0.00018356,2]
[423970309,1780524649000,-500.0,0.00018356,2]
[423970307,1780524649000,-500.0,0.00018356,2]
[423970308,1780524649000,-5143.02,0.00018356,2]
[423970311,1780524649000,-1001.16,0.00018356,2]
[423970312,1780524649000,-1106.82,0.00018356,2]
[423970314,1780524649000,-2641.48943574,0.000186,2]
[423970313,1780524649000,-2641.48943574,0.000184,2]
[423970315,1780524649000,-500.0,0.0001863,2]
[423970327,1780524649000,-1000.0,0.000188,2]
[423970306,1780524649000,-585.16,0.00018356,2]
[423970325,1780524649000,-2641.48943574,0.000188,2]
[423970316,1780524649000,-500.0,0.0001863,2]
[423970334,1780524649000,-230.7,0.00018904,2]
[423970331,1780524649000,-500.0,0.00018904,2]
[423970332,1780524649000,-500.0,0.00018904,2]
[423970328,1780524649000,-2641.48943574,0.000189,2]
[423970320,1780524649000,-5143.02,0.0001863,2]
[423970329,1780524649000,-500.0,0.00018904,2]
[423970322,1780524649000,-500.0,0.0001863,2]
[423970319,1780524649000,-500.0,0.0001863,2]
[423970317,1780524649000,-500.0,0.0001863,2]
[423970318,1780524649000,-585.16,0.0001863,2]
[423970326,1780524649000,-151.0,0.000188,2]
[423970323,1780524649000,-1001.16,0.0001863,2]
[423970372,1780524649000,-300.0,0.00019589,3]
[423970423,1780524650000,-1000.0,0.0002178,5]
[423970414,1780524650000,-244.0,0.00021682,10]
[423970417,1780524650000,-5000.0,0.00021692,2]
[423970421,1780524650000,-202.0,0.00021705,30]
[423970422,1780524650000,-1457.253025,0.0002176,5]
[423970411,1780524650000,-2204.0,0.00021354,2]
[423970413,1780524650000,-1000.0,0.00021682,10]
[423970410,1780524650000,-3629.0,0.00021354,2]
[423970412,1780524650000,-3448.88473276,0.0002148,2]
[423970419,1780524650000,-5000.0,0.00021692,2]
[423970408,1780524650000,-160.0,0.00021347,4]
[423970415,1780524650000,-5922.3452028,0.00021692,2]
[423970409,1780524650000,-1836.0,0.00021354,2]
[423970424,1780524650000,-163.0,0.00021781,5]
[423970420,1780524650000,-5000.0,0.00021692,2]
[423970437,1780524650000,-185.06835223,0.00021918,2]
[423970425,1780524650000,-1000.0,0.000218,5]
[423970429,1780524650000,-1000.0,0.0002186,5]
[423970435,1780524650000,-151.0,0.00021918,2]
[423970432,1780524650000,-1000.0,0.000219,5]
[423970427,1780524650000,-1000.0,0.0002182,5]
[423970431,1780524650000,-1000.0,0.0002188,5]
[423970430,1780524650000,-3140.85975364,0.0002187,2]
[423970428,1780524650000,-1000.0,0.0002184,5]
[423970434,1780524650000,-151.0,0.00021918,2]
[423970407,1780524650000,-532.577527,0.00021258,2]
[423970433,1780524650000,-206.07,0.0002191,2]
[423970418,1780524650000,-5000.0,0.00021692,2]
[423970405,1780524650000,-346.288763,0.00021258,2]
[423970388,1780524650000,-200.61952458,0.00019999,2]
[423970402,1780524650000,-10000.0,0.00021,5]
[423970438,1780524650000,-370.13670446,0.00021918,2]
[423970373,1780524650000,-230.473789,0.000196,2]
[423970379,1780524650000,-638.48,0.00019726,2]
[423970380,1780524650000,-500.0,0.00019726,2]
[423970374,1780524650000,-200.0,0.00019705,2]
[423970376,1780524650000,-17487.62609625,0.00019706,3]
[423970382,1780524650000,-585.16,0.00019726,2]
[423970375,1780524650000,-38000.0,0.00019706,3]
[423970384,1780524650000,-1001.16,0.00019726,2]
[423970383,1780524650000,-5143.02,0.00019726,2]
[423970385,1780524650000,-1106.82,0.00019726,2]
[423970378,1780524650000,-323.9838784,0.00019724,7]
[423970377,1780524650000,-1000.0,0.00019711,2]
[423970386,1780524650000,-1000.0,0.000198,2]
[423970398,1780524650000,-1000.0,0.000203,2]
[423970399,1780524650000,-1308.55524051,0.0002038,2]
[423970400,1780524650000,-160.0,0.00020693,3]
[423970389,1780524650000,-273785.102422,0.0002,2]
[423970387,1780524650000,-1000.0,0.00019881,5]
[423970390,1780524650000,-343636.26173271,0.0002,2]
[423970393,1780524650000,-585.26241432,0.0002,2]
[423970392,1780524650000,-223.63,0.0002,2]
[423970394,1780524650000,-202.0,0.0002,2]
[423970395,1780524650000,-5143.22183951,0.0002,2]
[423970396,1780524650000,-1001.27,0.0002,2]
[423970397,1780524650000,-1107.0252122,0.0002,2]
[423970403,1780524650000,-202.0,0.00021,2]
[423970404,1780524650000,-160.0,0.00021258,2]
[423970439,1780524650000,-555.20505669,0.00021918,2]
[423970443,1780524650000,-470.49521409,0.00021918,2]
[423970441,1780524650000,-156.83173803,0.00021918,2]
[423970477,1780524650000,-200.0,0.00022,2]
[423970473,1780524650000,-200.0,0.00022,2]
[423970474,1780524650000,-200.0,0.00022,2]
[423970482,1780524650000,-1280.0,0.00022,5]
[423970483,1780524650000,-202.0,0.00022,2]
[423970492,1780524650000,-1500.0,0.00022019,2]
[423970484,1780524650000,-160.0,0.00022002,5]
[423970481,1780524650000,-15000.0,0.00022,30]
[423970493,1780524650000,-1500.0,0.00022019,2]
[423970485,1780524650000,-1500.0,0.00022019,2]
[423970491,1780524650000,-1500.0,0.00022019,2]
[423970489,1780524650000,-1500.0,0.00022019,2]
[423970487,1780524650000,-1500.0,0.00022019,2]
[423970488,1780524650000,-1500.0,0.00022019,2]
[423970490,1780524650000,-1500.0,0.00022019,2]
[423970495,1780524650000,-1500.0,0.00022019,2]
[423970499,1780524650000,-684.7064325,0.00022183,30]
[423970505,1780524650000,-409.73,0.000223,2]
[423970507,1780524650000,-5008.30502997,0.00022315,2]
[423970503,1780524650000,-784.15869015,0.00022269,2]
[423970498,1780524650000,-300.0,0.000221,2]
[423970504,1780524650000,-594.1799,0.000223,2]
[423970501,1780524650000,-500.0,0.00022192,2]
[423970494,1780524650000,-1500.0,0.00022019,2]
[423970500,1780524650000,-167.8,0.00022192,2]
[423970502,1780524650000,-1069.95561975,0.00022228,7]
[423970440,1780524650000,-740.27340892,0.00021918,2]
[423970472,1780524650000,-200.0,0.00022,2]
[423970475,1780524650000,-200.0,0.00022,2]
[423970497,1780524650000,-2327.525199,0.00022019,2]
[423970479,1780524650000,-200.0,0.00022,2]
[423970480,1780524650000,-200.0,0.00022,2]
[423970444,1780524650000,-627.32695212,0.00021918,2]
[423970451,1780524650000,-200.0,0.00022,2]
[423970447,1780524650000,-11398.43661353,0.00021918,3]
[423970449,1780524650000,-47398.64270729,0.00022,3]
[423970442,1780524650000,-313.66347606,0.00021918,2]
[423970450,1780524650000,-108429.59109742,0.00022,2]
[423970448,1780524650000,-13023.44309271,0.00021918,3]
[423970453,1780524650000,-200.0,0.00022,2]
[423970465,1780524650000,-200.0,0.00022,2]
[423970463,1780524650000,-200.0,0.00022,2]
[423970464,1780524650000,-200.0,0.00022,2]
[423970457,1780524650000,-200.0,0.00022,2]
[423970445,1780524650000,-500.0,0.00021918,8]
[423970454,1780524650000,-200.0,0.00022,2]
[423970455,1780524650000,-200.0,0.00022,2]
[423970470,1780524650000,-200.0,0.00022,2]
[423970467,1780524650000,-200.0,0.00022,2]
[423970469,1780524650000,-200.0,0.00022,2]
[423970468,1780524650000,-200.0,0.00022,2]
[423970461,1780524650000,-200.0,0.00022,2]
[423970471,1780524650000,-200.0,0.00022,2]
[423970478,1780524650000,-200.0,0.00022,2]
[423970458,1780524650000,-200.0,0.00022,2]
[423970462,1780524650000,-200.0,0.00022,2]
[423970452,1780524650000,-200.0,0.00022,2]
[423970460,1780524650000,-200.0,0.00022,2]
[423970459,1780524650000,-200.0,0.00022,2]
[423970551,1780524651000,-151.0,0.0002311,2]
[423970550,1780524651000,-191.95,0.00023109,7]
[423970561,1780524651000,-151.0,0.0002311,2]
[423970562,1780524651000,-151.0,0.0002311,2]
[423970546,1780524651000,-256.85,0.00023063,7]
[423970541,1780524651000,-202.0,0.00023,2]
[423970545,1780524651000,-800.0,0.00023045,2]
[423970543,1780524651000,-161.1265756,0.00023039,2]
[423970538,1780524651000,-265.67122696,0.00023,30]
[423970542,1780524651000,-214.0,0.00023,7]
[423970563,1780524651000,-151.0,0.0002311,2]
[423970539,1780524651000,-160.0,0.00023,3]
[423970552,1780524651000,-151.0,0.0002311,2]
[423970577,1780524651000,-151.0,0.0002311,2]
[423970555,1780524651000,-151.0,0.0002311,2]
[423970554,1780524651000,-151.0,0.0002311,2]
[423970558,1780524651000,-151.0,0.0002311,2]
[423970559,1780524651000,-151.0,0.0002311,2]
[423970557,1780524651000,-151.0,0.0002311,2]
[423970560,1780524651000,-151.0,0.0002311,2]
[423970565,1780524651000,-151.0,0.0002311,2]
[423970567,1780524651000,-151.0,0.0002311,2]
[423970568,1780524651000,-151.0,0.0002311,2]
[423970569,1780524651000,-151.0,0.0002311,2]
[423970566,1780524651000,-151.0,0.0002311,2]
[423970576,1780524651000,-151.0,0.0002311,2]
[423970540,1780524651000,-160.0,0.00023,2]
[423970556,1780524651000,-151.0,0.0002311,2]
[423970536,1780524651000,-3866.38647809,0.00022778,2]
[423970524,1780524651000,-2248.563,0.000226,2]
[423970548,1780524651000,-800.0,0.0002307,2]
[423970578,1780524651000,-181.532,0.0002311,2]
[423970508,1780524651000,-5000.0,0.00022315,2]
[423970510,1780524651000,-5000.0,0.00022315,2]
[423970516,1780524651000,-1045.44872058,0.000225,2]
[423970509,1780524651000,-5000.0,0.00022315,2]
[423970517,1780524651000,-300.0,0.0002251,2]
[423970511,1780524651000,-5000.0,0.00022315,2]
[423970521,1780524651000,-1510.115,0.000226,2]
[423970520,1780524651000,-1512.38,0.000226,2]
[423970514,1780524651000,-507.97066712,0.00022495,30]
[423970519,1780524651000,-1512.38,0.000226,2]
[423970522,1780524651000,-1510.11,0.000226,2]
[423970513,1780524651000,-167.84,0.00022466,2]
[423970512,1780524651000,-623.319774,0.00022321,14]
[423970518,1780524651000,-1079.697908,0.00022554,14]
[423970535,1780524651000,-202.0,0.00022705,30]
[423970523,1780524651000,-2248.563,0.000226,2]
[423970527,1780524651000,-409.73,0.000226,2]
[423970526,1780524651000,-2248.56,0.000226,2]
[423970528,1780524651000,-478.83,0.000226,2]
[423970531,1780524651000,-1214.615,0.000226,2]
[423970532,1780524651000,-160.0,0.00022656,6]
[423970530,1780524651000,-1216.4301,0.000226,2]
[423970529,1780524651000,-1505.9802,0.000226,2]
[423970533,1780524651000,-225.407,0.0002268,2]
[423970537,1780524651000,-200.0,0.0002291,2]
[423970549,1780524651000,-300.0,0.000231,2]
[423970547,1780524651000,-218.33,0.00023063,7]
[423970572,1780524651000,-151.0,0.0002311,2]
[423970570,1780524651000,-151.0,0.0002311,2]
[423970622,1780524651000,-256.85,0.00023263,7]
[423970614,1780524651000,-155.73,0.00023251,7]
[423970613,1780524651000,-272.44,0.00023241,2]
[423970615,1780524651000,-205.19945497,0.00023251,7]
[423970616,1780524651000,-150.54,0.00023251,7]
[423970631,1780524651000,-150.54,0.00023301,7]
[423970618,1780524651000,-272.44,0.00023252,2]
[423970620,1780524651000,-157.52,0.00023261,7]
[423970629,1780524651000,-625.46341297,0.00023295,120]
[423970619,1780524651000,-424.95302043,0.00023253,2]
[423970626,1780524651000,-800.0,0.00023293,2]
[423970628,1780524651000,-272.44,0.00023293,2]
[423970624,1780524651000,-272.44,0.00023283,2]
[423970625,1780524651000,-151.0,0.00023287,30]
[423970621,1780524651000,-272.44,0.00023262,2]
[423970623,1780524651000,-272.44,0.00023272,2]
[423970633,1780524651000,-6436.0494108,0.0002331,2]
[423970643,1780524651000,-10000.0,0.00023339,2]
[423970632,1780524651000,-272.44,0.00023303,2]
[423970634,1780524651000,-160.0,0.00023311,7]
[423970642,1780524651000,-272.44,0.00023334,2]
[423970635,1780524651000,-157.52,0.00023311,7]
[423970639,1780524651000,-272.44,0.00023314,2]
[423970638,1780524651000,-256.85,0.00023313,7]
[423970641,1780524651000,-1474.13110483,0.00023333,120]
[423970636,1780524651000,-409.0,0.00023312,30]
[423970640,1780524651000,-272.44,0.00023324,2]
[423970571,1780524651000,-151.0,0.0002311,2]
[423970612,1780524651000,-272.44,0.00023231,2]
[423970609,1780524651000,-157.52,0.00023211,7]
[423970630,1780524651000,-155.73,0.00023301,7]
[423970605,1780524651000,-800.0,0.00023207,2]
[423970575,1780524651000,-151.0,0.0002311,2]
[423970573,1780524651000,-151.0,0.0002311,2]
[423970586,1780524651000,-191.96963631,0.00023159,7]
[423970588,1780524651000,-256.85,0.00023163,7]
[423970582,1780524651000,-599.88837469,0.00023116,7]
[423970584,1780524651000,-212.69,0.0002314,7]
[423970585,1780524651000,-800.0,0.00023147,2]
[423970579,1780524651000,-800.0,0.00023111,2]
[423970591,1780524651000,-800.0,0.00023183,2]
[423970606,1780524651000,-184.45993384,0.00023207,7]
[423970580,1780524651000,-256.85,0.00023113,7]
[423970593,1780524651000,-195.7135723,0.00023193,7]
[423970592,1780524651000,-212.70538395,0.0002319,7]
[423970587,1780524651000,-157.52,0.00023161,7]
[423970581,1780524651000,-218.33565995,0.00023113,7]
[423970589,1780524651000,-189.02492158,0.00023167,7]
[423970610,1780524651000,-256.85,0.00023213,7]
[423970590,1780524651000,-800.0,0.00023167,2]
[423970607,1780524651000,-272.44,0.0002321,2]
[423970611,1780524651000,-272.44,0.00023221,2]
[423970604,1780524651000,-231.28656151,0.00023201,7]
[423970602,1780524651000,-205.19,0.00023201,7]
[423970603,1780524651000,-150.54,0.00023201,7]
[423970601,1780524651000,-155.73,0.00023201,7]
[423970597,1780524651000,-272.44,0.000232,2]
[423970598,1780524651000,-504.1928,0.000232,2]
[423970599,1780524651000,-37000.0,0.000232,30]
[423970595,1780524651000,-366.07992726,0.00023195,7]
[423970596,1780524651000,-200.0,0.000232,21]
[423970693,1780524652000,-262.32916374,0.0002341,2]
[423970684,1780524652000,-1212.54011538,0.0002341,2]
[423970686,1780524652000,-660.68004306,0.0002341,2]
[423970682,1780524652000,-474.65767974,0.0002341,2]
[423970683,1780524652000,-191.88655052,0.0002341,2]
[423970687,1780524652000,-2920.0,0.0002341,2]
[423970690,1780524652000,-204.24520234,0.0002341,2]
[423970681,1780524652000,-589.79119588,0.0002341,2]
[423970680,1780524652000,-514.96704163,0.0002341,2]
[423970691,1780524652000,-3194.16340781,0.0002341,2]
[423970692,1780524652000,-152.50186418,0.0002341,2]
[423970695,1780524652000,-328.41563974,0.0002341,2]
[423970685,1780524652000,-1417.28315215,0.0002341,2]
[423970697,1780524652000,-160.0,0.0002341,2]
[423970721,1780524652000,-3009.22272116,0.0002341,2]
[423970703,1780524652000,-331.81321255,0.0002341,2]
[423970706,1780524652000,-25425.52853406,0.0002341,10]
[423970696,1780524652000,-1058.5770452,0.0002341,2]
[423970705,1780524652000,-57454.81220697,0.0002341,2]
[423970702,1780524652000,-821.98758456,0.0002341,2]
[423970694,1780524652000,-678.99676722,0.0002341,2]
[423970701,1780524652000,-300.0,0.0002341,2]
[423970700,1780524652000,-509205.03606348,0.0002341,7]
[423970704,1780524652000,-296.13536695,0.0002341,2]
[423970699,1780524652000,-1300.0,0.0002341,2]
[423970719,1780524652000,-500.0,0.0002341,10]
[423970720,1780524652000,-181.14900186,0.0002341,2]
[423970689,1780524652000,-391.08584635,0.0002341,2]
[423970707,1780524652000,-768.3857678,0.0002341,2]
[423970679,1780524652000,-159.83154755,0.0002341,2]
[423970644,1780524652000,-272.44,0.00023345,2]
[423970671,1780524652000,-4500.0,0.0002341,2]
[423970645,1780524652000,-158.56,0.0002335,2]
[423970660,1780524652000,-4068.9,0.00023395,2]
[423970649,1780524652000,-150.54,0.00023351,7]
[423970650,1780524652000,-272.44,0.00023355,2]
[423970654,1780524652000,-272.44,0.00023366,2]
[423970659,1780524652000,-160.0,0.00023393,30]
[423970661,1780524652000,-2589.3,0.00023395,7]
[423970656,1780524652000,-420.24,0.00023384,2]
[423970648,1780524652000,-155.73,0.00023351,7]
[423970653,1780524652000,-256.85,0.00023363,7]
[423970646,1780524652000,-684.7064325,0.0002335,30]
[423970655,1780524652000,-272.44,0.00023376,2]
[423970658,1780524652000,-272.44,0.00023386,2]
[423970675,1780524652000,-158.85661196,0.0002341,2]
[423970652,1780524652000,-157.52,0.00023361,7]
[423970662,1780524652000,-739.8,0.00023395,2]
[423970664,1780524652000,-1092.25,0.000234,2]
[423970665,1780524652000,-155.73,0.00023401,7]
[423970666,1780524652000,-150.54,0.00023401,7]
[423970663,1780524652000,-151.0,0.00023399,6]
[423970668,1780524652000,-202.0,0.0002341,120]
[423970676,1780524652000,-712.72880936,0.0002341,2]
[423970670,1780524652000,-6389.40877403,0.0002341,2]
[423970669,1780524652000,-155.58123719,0.0002341,2]
[423970674,1780524652000,-1381.57074471,0.0002341,2]
[423970677,1780524652000,-749.98639541,0.0002341,2]
[423970672,1780524652000,-3823.46350314,0.0002341,2]
[423970673,1780524652000,-646.47348075,0.0002341,2]
[423970651,1780524652000,-200.0,0.00023357,120]
[423970714,1780524652000,-52482.91072491,0.0002341,2]
[423970731,1780524652000,-156.42,0.0002341,2]
[423970711,1780524652000,-162.17333592,0.0002341,2]
[423970753,1780524652000,-326.2939756,0.0002341,2]
[423970752,1780524652000,-457.0791509,0.0002341,2]
[423970755,1780524652000,-457.165364,0.0002341,2]
[423970754,1780524652000,-326.2939756,0.0002341,2]
[423970757,1780524652000,-326.2939756,0.0002341,2]
[423970759,1780524652000,-457.0791509,0.0002341,2]
[423970756,1780524652000,-457.0791509,0.0002341,2]
[423970761,1780524652000,-326.3532855,0.0002341,2]
[423970763,1780524652000,-326.2939756,0.0002341,2]
[423970762,1780524652000,-457.165364,0.0002341,2]
[423970760,1780524652000,-151.0,0.0002341,2]
[423970710,1780524652000,-600.62080073,0.0002341,2]
[423970764,1780524652000,-551.6180274,0.0002341,2]
[423970751,1780524652000,-326.2939757,0.0002341,2]
[423970767,1780524652000,-326.2939756,0.0002341,2]
[423970770,1780524652000,-151.0,0.0002341,2]
[423970769,1780524652000,-326.2939756,0.0002341,2]
[423970771,1780524652000,-326.3532855,0.0002341,2]
[423970774,1780524652000,-456.9255797,0.0002341,2]
[423970772,1780524652000,-456.6480851,0.0002341,2]
[423970776,1780524652000,-457.0791509,0.0002341,2]
[423970777,1780524652000,-377.90689,0.0002341,2]
[423970780,1780524652000,-217.251412,0.0002341,2]
[423970779,1780524652000,-151.0,0.0002341,2]
[423970775,1780524652000,-326.2939756,0.0002341,2]
[423970778,1780524652000,-326.2939756,0.0002341,2]
[423970783,1780524652000,-326.2939756,0.0002341,2]
[423970782,1780524652000,-457.0791509,0.0002341,2]
[423970766,1780524652000,-151.0,0.0002341,2]
[423970747,1780524652000,-457.0791509,0.0002341,2]
[423970765,1780524652000,-151.0,0.0002341,2]
[423970750,1780524652000,-457.0791509,0.0002341,2]
[423970749,1780524652000,-457.0791509,0.0002341,2]
[423970709,1780524652000,-9524.65358339,0.0002341,2]
[423970716,1780524652000,-200.0,0.0002341,2]
[423970712,1780524652000,-295.03014117,0.0002341,2]
[423970715,1780524652000,-3979.64305995,0.0002341,2]
[423970718,1780524652000,-500.0,0.0002341,10]
[423970722,1780524652000,-500.0,0.0002341,2]
[423970724,1780524652000,-246.372317,0.0002341,10]
[423970723,1780524652000,-521.81191844,0.0002341,2]
[423970727,1780524652000,-156.42,0.0002341,2]
[423970730,1780524652000,-156.42,0.0002341,2]
[423970726,1780524652000,-247.7047807,0.0002341,10]
[423970713,1780524652000,-10020.35905106,0.0002341,2]
[423970729,1780524652000,-156.42,0.0002341,2]
[423970725,1780524652000,-158.0,0.0002341,10]
[423970734,1780524652000,-156.42,0.0002341,2]
[423970732,1780524652000,-156.42,0.0002341,2]
[423970744,1780524652000,-457.0791509,0.0002341,2]
[423970745,1780524652000,-457.165364,0.0002341,2]
[423970743,1780524652000,-457.0791509,0.0002341,2]
[423970740,1780524652000,-455.6018376,0.0002341,2]
[423970738,1780524652000,-701.52616021,0.0002341,2]
[423970746,1780524652000,-326.2939756,0.0002341,2]
[423970739,1780524652000,-320.06063577,0.0002341,5]
[423970736,1780524652000,-500.0,0.0002341,10]
[423970741,1780524652000,-457.0791509,0.0002341,2]
[423970733,1780524652000,-156.42,0.0002341,2]
[423970735,1780524652000,-156.42,0.0002341,2]
[423970742,1780524652000,-457.165364,0.0002341,2]
[423970833,1780524653000,-326.2939756,0.0002341,2]
[423970827,1780524653000,-326.2939756,0.0002341,2]
[423970817,1780524653000,-151.0,0.0002341,2]
[423970830,1780524653000,-326.2939756,0.0002341,2]
[423970831,1780524653000,-457.0791509,0.0002341,2]
[423970823,1780524653000,-457.0791509,0.0002341,2]
[423970825,1780524653000,-326.2939756,0.0002341,2]
[423970826,1780524653000,-457.0791509,0.0002341,2]
[423970821,1780524653000,-326.2939756,0.0002341,2]
[423970820,1780524653000,-151.0,0.0002341,2]
[423970842,1780524653000,-457.0791509,0.0002341,2]
[423970829,1780524653000,-457.0791509,0.0002341,2]
[423970843,1780524653000,-326.2939756,0.0002341,2]
[423970857,1780524653000,-4845.706072,0.0002341,2]
[423970845,1780524653000,-457.0791509,0.0002341,2]
[423970832,1780524653000,-457.0791509,0.0002341,2]
[423970835,1780524653000,-175.6187043,0.0002341,2]
[423970840,1780524653000,-457.0791509,0.0002341,2]
[423970834,1780524653000,-326.2939756,0.0002341,2]
[423970836,1780524653000,-457.0791509,0.0002341,2]
[423970841,1780524653000,-326.2939756,0.0002341,2]
[423970839,1780524653000,-457.0791509,0.0002341,2]
[423970837,1780524653000,-326.2939756,0.0002341,2]
[423970846,1780524653000,-4845.706072,0.0002341,2]
[423970847,1780524653000,-4845.706072,0.0002341,2]
[423970848,1780524653000,-4845.706072,0.0002341,2]
[423970858,1780524653000,-4845.706072,0.0002341,2]
[423970824,1780524653000,-151.0,0.0002341,2]
[423970844,1780524653000,-325.8690331,0.0002341,2]
[423970822,1780524653000,-457.0791509,0.0002341,2]
[423970859,1780524653000,-4845.706072,0.0002341,2]
[423970816,1780524653000,-326.2939756,0.0002341,2]
[423970786,1780524653000,-151.0,0.0002341,2]
[423970785,1780524653000,-457.0791509,0.0002341,2]
[423970787,1780524653000,-457.0791509,0.0002341,2]
[423970784,1780524653000,-151.0,0.0002341,2]
[423970788,1780524653000,-326.2939756,0.0002341,2]
[423970789,1780524653000,-151.0,0.0002341,2]
[423970791,1780524653000,-457.0791509,0.0002341,2]
[423970798,1780524653000,-326.2939756,0.0002341,2]
[423970794,1780524653000,-326.2939756,0.0002341,2]
[423970802,1780524653000,-457.0791509,0.0002341,2]
[423970797,1780524653000,-457.0791509,0.0002341,2]
[423970793,1780524653000,-457.0791509,0.0002341,2]
[423970796,1780524653000,-151.0,0.0002341,2]
[423970801,1780524653000,-326.2939756,0.0002341,2]
[423970800,1780524653000,-151.0,0.0002341,2]
[423970792,1780524653000,-152.3492312,0.0002341,2]
[423970795,1780524653000,-457.0791512,0.0002341,2]
[423970804,1780524653000,-151.0,0.0002341,2]
[423970805,1780524653000,-326.2939756,0.0002341,2]
[423970803,1780524653000,-457.165364,0.0002341,2]
[423970815,1780524653000,-457.0791509,0.0002341,2]
[423970814,1780524653000,-151.0,0.0002341,2]
[423970807,1780524653000,-457.0791509,0.0002341,2]
[423970808,1780524653000,-457.0791509,0.0002341,2]
[423970806,1780524653000,-326.2939756,0.0002341,2]
[423970811,1780524653000,-326.2939756,0.0002341,2]
[423970813,1780524653000,-457.0791509,0.0002341,2]
[423970812,1780524653000,-151.0,0.0002341,2]
[423970810,1780524653000,-457.165364,0.0002341,2]
[423970819,1780524653000,-457.0791509,0.0002341,2]